bitfinex-derivatives/quotes_BTCF0:USTF0_20250930
["timestamp","ask_amount","ask_price","bid_price","bid_amount"]
[1759195090970,0.04131942,114620.0,114610.0,0.74139494]
[1759195091274,0.0004,114620.0,114610.0,1.469914]
[1759195091470,8.523e-05,114620.0,114610.0,1.42325078]
[1759195091666,0.0008,114640.0,114630.0,0.0871739]
[1759195091868,0.0008,114640.0,114630.0,0.74812974]
[1759195092068,0.03455,114650.0,114640.0,0.1094463]
[1759195092269,0.04212556,114650.0,114640.0,0.74853214]
[1759195092466,0.29259584,114650.0,114640.0,0.74853214]
[1759195092666,0.39323454,114650.0,114640.0,0.65420584]
[1759195092871,0.41308956,114650.0,114640.0,0.65420584]
[1759195093077,0.41308956,114650.0,114640.0,0.4702463]
[1759195093269,0.41308956,114650.0,114640.0,0.74137214]
[1759195093471,0.41308956,114650.0,114640.0,0.65420584]
[1759195094578,0.41808956,114650.0,114640.0,0.38308]
[1759195094778,0.42808956,114650.0,114640.0,0.02228]
[1759195094974,0.42808956,114650.0,114640.0,0.4702463]
[1759195095179,0.42808956,114650.0,114640.0,0.74137214]
[1759195095582,0.42768956,114650.0,114640.0,0.74137214]
[1759195095782,0.42808956,114650.0,114640.0,0.74137214]
[1759195096877,0.34093086,114650.0,114640.0,0.74137214]
[1759195097074,0.42768956,114650.0,114640.0,0.74137214]
[1759195097276,0.42808956,114650.0,114640.0,0.38308]
[1759195097475,0.1224663,114640.0,114630.0,1.54604514]
[1759195097674,0.39359214,114640.0,114630.0,0.74088974]
[1759195097876,0.41344842,114640.0,114630.0,0.74088974]
[1759195098274,0.39359214,114640.0,114630.0,0.74088974]
[1759195098481,0.68457477,114640.0,114630.0,0.38259]
[1759195098682,0.68657477,114640.0,114630.0,0.4697639]
[1759195098986,0.68657477,114640.0,114610.0,0.65317584]
[1759195098987,0.03623,114620.0,114610.0,0.65317584]
[1759195099186,0.30735584,114620.0,114610.0,0.65317584]
[1759195099685,0.30735584,114620.0,114610.0,0.74036494]
[1759195100480,0.66566318,114620.0,114610.0,0.38905]
[1759195100681,0.68551713,114620.0,114610.0,0.38905]
[1759195100882,0.41439129,114620.0,114610.0,0.38905]
[1759195101084,0.41439129,114620.0,114610.0,0.74736494]
[1759195101291,0.39453494,114630.0,114620.0,0.1084315]
[1759195101584,0.41517732,114630.0,114620.0,0.74035734]
[1759195101989,0.41517732,114630.0,114620.0,0.4692315]
[1759195102590,0.81517732,114630.0,114620.0,0.3618]
[1759195103186,0.81517732,114630.0,114620.0,0.3608]
[1759195103384,0.81517732,114630.0,114620.0,0.3618]
[1759195103890,0.81517066,114630.0,114620.0,0.3618]
[1759195104389,1.4470965,114630.0,114620.0,0.001]
[1759195104792,1.17597066,114630.0,114620.0,0.001]
[1759195105289,1.15612974,114630.0,114620.0,0.001]
[1759195105789,1.44709109,114630.0,114620.0,0.001]
[1759195105993,1.44709109,114630.0,114600.0,0.3608]
[1759195105994,0.1234191,114610.0,114600.0,0.3608]
[1759195106190,0.11491808,114600.0,114590.0,0.3608]
[1759195106390,0.1006719,114580.0,114570.0,1.23391844]
[1759195106590,0.38038485,114580.0,114570.0,0.52943133]
[1759195106786,0.38038485,114580.0,114570.0,0.37425339]
[1759195106787,0.65151069,114580.0,114570.0,0.37425339]
[1759195107090,1.45667069,114580.0,114570.0,0.37425339]
[1759195107394,1.45567069,114580.0,114570.0,0.37425339]
[1759195107788,1.45567069,114580.0,114570.0,0.3608]
[1759195107989,0.65051069,114580.0,114570.0,0.3608]
[1759195108191,0.65051069,114580.0,114570.0,0.3738]
[1759195108192,1.33774131,114580.0,114570.0,0.3738]
[1759195108393,1.33774131,114580.0,114570.0,0.3608]
[1759195108588,1.73778131,114580.0,114570.0,0.3608]
[1759195109099,0.1234495,114570.0,114560.0,0.36087087]
[1759195109297,0.9286495,114570.0,114560.0,0.36087087]
[1759195109590,0.9286495,114570.0,114560.0,7.087e-05]
[1759195109796,0.9286495,114570.0,114560.0,0.36087087]
[1759195110388,0.1234495,114570.0,114560.0,0.36087087]
[1759195110698,0.9286895,114570.0,114560.0,7.087e-05]
[1759195111001,0.9286895,114570.0,114560.0,0.00807087]
[1759195111299,0.1234495,114570.0,114560.0,0.00807087]
[1759195111499,0.9286895,114570.0,114560.0,0.36887087]
[1759195112196,0.9286895,114570.0,114560.0,0.45609797]
[1759195112397,0.9287295,114570.0,114560.0,0.00807087]
[1759195112601,0.1234495,114570.0,114560.0,0.00807087]
[1759195112992,0.9287295,114570.0,114560.0,0.00807087]
[1759195113394,0.1234495,114570.0,114560.0,0.38212087]
[1759195113592,0.1244495,114570.0,114560.0,0.38212087]
[1759195113792,0.85904742,114570.0,114560.0,0.38212087]
[1759195113998,0.85804742,114570.0,114560.0,0.38212087]
[1759195114191,0.85804742,114570.0,114560.0,7.087e-05]
[1759195114393,1.28236972,114570.0,114560.0,7.087e-05]
[1759195114794,0.61680972,114570.0,114560.0,7.087e-05]
[1759195115102,1.78298114,114570.0,114560.0,8.7e-07]
[1759195115394,0.0872271,114560.0,114540.0,0.3608]
[1759195115602,1.353107,114550.0,114540.0,0.37402024]
[1759195115801,0.908587,114550.0,114540.0,0.01322024]
[1759195115994,0.9287447,114550.0,114540.0,0.01322024]
[1759195116192,1.34455394,114550.0,114540.0,0.01322024]
[1759195116496,0.53935226,114550.0,114540.0,0.02422024]
[1759195116697,1.34467226,114550.0,114540.0,0.02422024]
[1759195116895,0.53935226,114550.0,114540.0,0.02422024]
[1759195117100,0.92034996,114550.0,114540.0,0.01322024]
[1759195117293,0.92034996,114550.0,114540.0,0.02522024]
[1759195117494,0.02779526,114550.0,114540.0,0.02522024]
[1759195117692,0.93935226,114550.0,114540.0,0.01322024]
[1759195117897,1.74471226,114550.0,114540.0,0.01722024]
[1759195119203,1.75367542,114550.0,114540.0,0.01722024]
[1759195119402,1.35367542,114550.0,114540.0,0.01722024]
[1759195119598,0.54831542,114550.0,114540.0,0.10446264]
[1759195119802,1.26648072,114550.0,114540.0,0.10446264]
[1759195120097,1.26648072,114550.0,114540.0,0.01722024]
[1759195120098,1.35371542,114550.0,114540.0,0.01722024]
[1759195120303,0.92939312,114550.0,114540.0,0.01722024]
[1759195120991,0.02779526,114550.0,114540.0,0.12571264]
[1759195121198,0.83319526,114550.0,114540.0,0.91083494]
[1759195121392,0.02779526,114550.0,114540.0,0.91083494]
[1759195121696,0.83363526,114550.0,114540.0,0.91083494]
[1759195122092,0.83363526,114550.0,114540.0,0.10446264]
[1759195122298,0.83363526,114550.0,114540.0,0.46526264]
[1759195122999,0.92086996,114550.0,114540.0,0.46526264]
[1759195123199,0.83363526,114550.0,114540.0,0.48651264]
[1759195123402,0.83367526,114550.0,114540.0,0.91083494]
[1759195123603,0.83327526,114550.0,114540.0,0.91083494]
[1759195123902,0.83367526,114550.0,114540.0,0.48651264]
[1759195125007,0.00502526,114550.0,114540.0,1.32417494]
[1759195125306,0.00542526,114550.0,114540.0,1.32417494]
[1759195125507,0.00542526,114550.0,114540.0,1.31083494]
[1759195126305,0.02277,114550.0,114540.0,1.31083494]
[1759195126611,0.03623,114550.0,114540.0,1.31083494]
[1759195126794,0.03623,114550.0,114540.0,1.2976147]
[1759195128402,0.02277,114550.0,114540.0,1.3110947]
[1759195128610,0.63613,114560.0,114550.0,0.1226146]
[1759195128911,0.736037,114560.0,114550.0,0.9077369]
[1759195129102,0.735237,114560.0,114550.0,0.8942569]
[1759195129303,0.735637,114560.0,114550.0,0.8942569]
[1759195129506,0.64841,114560.0,114550.0,0.8942569]
[1759195130607,0.03417,114560.0,114550.0,0.8942569]
[1759195131506,0.10358792,114570.0,114560.0,0.1226069]
[1759195131711,0.09092792,114570.0,114560.0,0.9077292]
[1759195132112,0.09012792,114570.0,114560.0,0.9077292]
[1759195132410,0.09052792,114570.0,114560.0,0.9077292]
[1759195132810,0.07443792,114570.0,114560.0,1.3077292]
[1759195133010,0.07703792,114570.0,114560.0,1.3077292]
[1759195133211,0.07743792,114570.0,114560.0,1.3077292]
[1759195133415,0.07743792,114570.0,114560.0,2.1132492]
[1759195135613,0.0084,114570.0,114560.0,1.3077292]
[1759195136005,0.008,114570.0,114560.0,2.1132492]
[1759195136214,0.0084,114570.0,114560.0,2.1132492]
[1759195137202,0.0084,114570.0,114560.0,2.15995764]
[1759195137512,0.52193505,114610.0,114600.0,0.0219]
[1759195137712,1.34726917,114610.0,114600.0,0.0219]
[1759195138215,1.31641112,114610.0,114600.0,0.0219]
[1759195138404,0.95561112,114610.0,114600.0,0.0219]
[1759195138608,0.95561112,114610.0,114600.0,0.1090965]
[1759195138808,0.98461112,114610.0,114600.0,0.1090965]
[1759195139210,0.24030049,114610.0,114600.0,0.1090965]
[1759195139514,0.22190049,114610.0,114600.0,0.1090965]
[1759195139723,0.22230049,114610.0,114600.0,0.1090965]
[1759195141514,0.22230049,114610.0,114600.0,0.0219]
[1759195141915,0.22230049,114610.0,114600.0,0.1090965]
[1759195142419,0.13510679,114610.0,114600.0,0.4698965]
[1759195142621,0.13470679,114610.0,114600.0,0.4698965]
[1759195142818,0.13470679,114610.0,114600.0,0.82028954]
[1759195143118,0.08152267,114610.0,114600.0,0.82028954]
[1759195143315,0.08152267,114610.0,114600.0,1.62564954]
[1759195143516,0.08152267,114610.0,114600.0,2.02564954]
[1759195143817,0.0114,114610.0,114600.0,2.02564954]
[1759195144014,0.011,114610.0,114600.0,1.22028954]
[1759195144216,0.0114,114610.0,114600.0,2.03425867]
[1759195144418,0.011,114610.0,114600.0,2.03425867]
[1759195144617,0.0114,114610.0,114600.0,2.02564954]
[1759195144810,0.011,114610.0,114600.0,2.02564954]
[1759195145016,0.0114,114610.0,114600.0,2.02564954]
[1759195145218,0.011,114610.0,114600.0,2.02564954]
[1759195145409,0.0114,114610.0,114600.0,2.02564954]
[1759195145611,0.0114,114610.0,114600.0,2.02560954]
[1759195145818,0.011,114610.0,114600.0,2.02560954]
[1759195146015,0.0008,114630.0,114600.0,2.11280604]
[1759195146322,0.0008,114630.0,114620.0,1.17234434]
[1759195146514,0.07078073,114640.0,114630.0,0.0871737]
[1759195146714,0.03377,114640.0,114630.0,1.61206674]
[1759195147117,0.03377,114640.0,114630.0,0.80678674]
[1759195147319,0.03377,114640.0,114630.0,1.61206674]
[1759195147518,0.01348,114650.0,114640.0,0.0871661]
[1759195147519,0.01268,114650.0,114640.0,0.0871661]
[1759195147817,0.1209254,114660.0,114650.0,0.1090584]
[1759195148021,0.1209254,114660.0,114650.0,0.4698584]
[1759195148216,0.1213254,114660.0,114650.0,0.4698584]
[1759195148620,0.1213254,114660.0,114650.0,0.80677144]
[1759195148820,0.03417,114660.0,114650.0,0.80677144]
[1759195149020,0.03377,114660.0,114650.0,0.80677144]
[1759195149222,0.10309527,114660.0,114650.0,1.61197144]
[1759195149421,0.03377,114660.0,114650.0,1.61197144]
[1759195149622,0.03417,114660.0,114650.0,1.61193144]
[1759195149823,0.03417,114660.0,114650.0,0.4698584]
[1759195150020,0.05317,114660.0,114650.0,1.2750184]
[1759195150420,0.09217,114660.0,114650.0,0.4698584]
[1759195150621,0.1793209,114660.0,114650.0,1.2750184]
[1759195150818,0.1793209,114660.0,114650.0,0.4698584]
[1759195151123,0.1793209,114660.0,114650.0,1.2750184]
[1759195151323,0.1793209,114660.0,114650.0,0.4698584]
[1759195151523,0.1793209,114660.0,114650.0,1.2749784]
[1759195152119,0.16185081,114660.0,114650.0,1.2749784]
[1759195152521,0.16145081,114660.0,114650.0,0.4698584]
[1759195152825,0.16185081,114660.0,114650.0,1.2749384]
[1759195153026,0.16185081,114660.0,114650.0,1.61185144]
[1759195153426,0.16185081,114660.0,114650.0,0.80677144]
[1759195153626,0.24900171,114660.0,114650.0,0.4698584]
[1759195153828,0.24900171,114660.0,114650.0,1.2755384]
[1759195154327,0.24900171,114660.0,114650.0,0.4698584]
[1759195154528,0.24900171,114660.0,114650.0,1.2754984]
[1759195155630,0.24900171,114660.0,114650.0,1.2752984]
[1759195156033,0.24900171,114660.0,114650.0,1.2752584]
[1759195156630,0.16185081,114660.0,114650.0,1.2752584]
[1759195158330,0.12808081,114660.0,114650.0,1.61891144]
[1759195158630,0.12768081,114660.0,114650.0,1.61891144]
[1759195158832,0.12808081,114660.0,114650.0,1.61891144]
[1759195159825,0.07108081,114660.0,114650.0,1.61891144]
[1759195160027,0.09608081,114660.0,114650.0,1.61891144]
[1759195160226,0.09608081,114660.0,114650.0,2.01891144]
[1759195160632,0.09568081,114660.0,114650.0,2.01891144]
[1759195160832,0.07008081,114660.0,114650.0,2.01891144]
[1759195161033,0.07208081,114660.0,114650.0,2.01891144]
[1759195161430,0.0024,114660.0,114650.0,2.01891144]
[1759195161633,0.002,114660.0,114650.0,2.01891144]
[1759195161838,0.0024,114660.0,114650.0,2.01891144]
[1759195162535,0.002,114660.0,114650.0,2.01871144]
[1759195162735,0.0024,114660.0,114650.0,2.01871144]
[1759195163438,0.0024,114660.0,114650.0,2.01867144]
[1759195163634,0.0024,114660.0,114650.0,1.21351144]
[1759195163842,0.0024,114660.0,114650.0,2.01859144]
[1759195165041,0.0024,114660.0,114650.0,1.21351144]
[1759195165242,0.0024,114660.0,114650.0,2.01847144]
[1759195166345,0.0024,114660.0,114650.0,2.22358362]
[1759195167649,0.0024,114660.0,114650.0,1.41862362]
[1759195167851,0.0024,114660.0,114650.0,2.22346362]
[1759195168338,0.0024,114660.0,114650.0,2.23237515]
[1759195170553,0.0024,114660.0,114650.0,1.41862362]
[1759195170746,0.0024,114660.0,114650.0,2.22342362]
[1759195172053,0.0024,114660.0,114650.0,1.41862362]
[1759195172353,0.0024,114660.0,114650.0,2.22342362]
[1759195179457,0.0024,114660.0,114650.0,1.82342362]
[1759195180052,0.002,114660.0,114650.0,1.87013206]
[1759195180253,0.0024,114660.0,114650.0,1.87013206]
[1759195180454,0.002,114660.0,114650.0,1.87013206]
[1759195181057,0.0024,114660.0,114650.0,1.87013206]
[1759195181247,0.15796385,114680.0,114670.0,0.1169632]
[1759195181451,0.17695736,114680.0,114670.0,1.91429581]
[1759195181757,0.17735736,114680.0,114670.0,1.91429581]
[1759195182554,0.17735736,114680.0,114670.0,1.91829581]
[1759195182753,0.18335736,114680.0,114670.0,1.11357581]
[1759195182949,0.18335736,114680.0,114670.0,1.91825581]
[1759195183153,0.17735736,114680.0,114670.0,1.91425581]
[1759195183353,0.17735736,114680.0,114670.0,1.91725581]
[1759195187558,0.17695736,114680.0,114670.0,1.91725581]
[1759195187759,0.17735736,114680.0,114670.0,1.91725581]
[1759195190454,0.09021766,114680.0,114670.0,1.91725581]
[1759195190860,0.17735336,114680.0,114670.0,1.11257581]
[1759195191060,0.17695336,114680.0,114670.0,1.91713581]
[1759195191262,0.17735336,114680.0,114670.0,1.91713581]
[1759195192361,0.17735336,114680.0,114670.0,1.91709581]
[1759195192752,0.19076336,114680.0,114670.0,1.11257581]
[1759195193066,0.19076336,114680.0,114670.0,1.91709581]
[1759195193365,0.17735336,114680.0,114670.0,1.91709581]
[1759195195064,0.17735336,114680.0,114670.0,1.11257581]
[1759195195263,0.17735336,114680.0,114670.0,1.91709581]
[1759195197756,0.17735336,114680.0,114670.0,1.02543261]
[1759195197962,0.59076336,114680.0,114670.0,1.01869261]
[1759195198268,0.59076336,114680.0,114670.0,1.82313261]
[1759195198462,0.88355597,114680.0,114670.0,0.003]
[1759195198668,0.61254336,114680.0,114670.0,0.003]
[1759195199070,0.61254336,114680.0,114670.0,0.38635]
[1759195199365,0.61254336,114680.0,114670.0,0.74450591]
[1759195199569,0.52540766,114680.0,114670.0,0.74450591]
[1759195199770,0.61254336,114680.0,114670.0,0.74450591]
[1759195199968,0.61254336,114680.0,114670.0,0.65736261]
[1759195200468,0.12540766,114680.0,114670.0,0.74450591]
[1759195200671,0.19913336,114680.0,114670.0,0.74925591]
[1759195200970,0.21214336,114680.0,114670.0,0.65736261]
[1759195201166,0.21254336,114680.0,114670.0,0.74450591]
[1759195201468,0.17735336,114680.0,114670.0,0.74925591]
[1759195201666,0.09021766,114680.0,114670.0,0.74925591]
[1759195201971,0.17695336,114680.0,114670.0,0.74925591]
[1759195202374,0.17735336,114680.0,114670.0,1.02015804]
[1759195203268,0.02019351,114680.0,114670.0,1.29111541]
[1759195203475,0.1009993,114710.0,114690.0,0.0871228]
[1759195203659,0.03566,114710.0,114700.0,1.81674524]
[1759195203863,0.1223001,114720.0,114710.0,0.1096629]
[1759195204063,0.1223001,114720.0,114710.0,1.01237764]
[1759195204260,0.1227001,114720.0,114710.0,0.74142027]
[1759195204771,0.1227001,114720.0,114710.0,0.65430737]
[1759195204973,0.1227001,114720.0,114710.0,0.38335]
[1759195205276,0.1407001,114720.0,114710.0,0.38335]
[1759195205569,0.1407001,114720.0,114710.0,0.65430737]
[1759195205773,0.1227001,114720.0,114710.0,0.65430737]
[1759195205975,0.1918149,114720.0,114710.0,0.65430737]
[1759195206372,0.2008149,114720.0,114710.0,0.74142027]
[1759195207175,0.2008149,114720.0,114710.0,0.65430737]
[1759195209883,0.1223031,114710.0,114700.0,0.65430737]
[1759195210076,0.39326047,114710.0,114700.0,0.65430737]
[1759195210578,0.39326047,114710.0,114700.0,0.74142807]
[1759195210974,0.03519,114710.0,114700.0,1.01238544]
[1759195211180,0.1343031,114710.0,114700.0,1.01238544]
[1759195211480,0.40526047,114710.0,114700.0,0.74142807]
[1759195212078,0.39926047,114710.0,114700.0,0.65430737]
[1759195212380,0.39926047,114710.0,114700.0,0.74142807]
[1759195212775,0.04119,114710.0,114700.0,0.74142807]
[1759195212977,0.31214737,114710.0,114700.0,0.74142807]
[1759195213179,0.31214737,114710.0,114700.0,0.65430737]
[1759195213474,0.39926047,114710.0,114700.0,0.65430737]
[1759195215371,0.41890518,114710.0,114700.0,0.65430737]
[1759195215575,0.14794781,114710.0,114700.0,0.65430737]
[1759195215774,0.41890518,114710.0,114700.0,0.65430737]
[1759195223485,0.41890518,114710.0,114700.0,0.74142807]
[1759195223886,0.41890518,114710.0,114700.0,0.65430737]
[1759195225292,0.39926047,114710.0,114700.0,0.65430737]
[1759195226789,0.39926047,114710.0,114700.0,0.38335]
[1759195227292,0.41883863,114710.0,114700.0,0.38335]
[1759195227683,0.689796,114710.0,114700.0,0.02255]
[1759195227888,0.1223707,114700.0,114690.0,0.3825]
[1759195228089,0.68386561,114700.0,114690.0,0.3825]
[1759195229293,0.69286561,114700.0,114690.0,0.3825]
[1759195229790,0.42190824,114700.0,114690.0,0.74058567]
[1759195230288,0.42190824,114700.0,114690.0,0.65345737]
[1759195230896,0.69286561,114700.0,114690.0,0.3825]
[1759195231586,0.1003483,114690.0,114680.0,0.4696285]
[1759195231889,0.1003483,114690.0,114680.0,0.0217]
[1759195231890,0.41293167,114690.0,114680.0,0.0217]
[1759195232294,0.41293167,114690.0,114680.0,0.37979327]
[1759195232494,0.41293167,114690.0,114680.0,0.74059327]
[1759195233992,0.054846,114690.0,114680.0,1.01155064]
[1759195234200,0.39333367,114700.0,114690.0,0.1088283]
[1759195234497,0.05524199,114700.0,114690.0,0.74058567]
[1759195234694,0.03565,114700.0,114690.0,0.74058567]
[1759195234896,0.1227707,114700.0,114690.0,0.74058567]
[1759195235500,0.04165,114700.0,114690.0,0.74058567]
[1759195235698,0.1317707,114700.0,114690.0,0.74058567]
[1759195236402,0.0094,114700.0,114690.0,1.82212304]
[1759195236600,0.009,114700.0,114690.0,2.22212304]
[1759195236903,0.0094,114700.0,114690.0,2.26883252]
[1759195237103,0.009,114700.0,114690.0,2.26883252]
[1759195237400,0.0094,114700.0,114690.0,2.26883252]
[1759195238703,0.0965207,114700.0,114690.0,1.46499252]
[1759195238900,0.1097407,114700.0,114690.0,1.86879252]
[1759195239099,0.1097407,114700.0,114690.0,1.59783515]
[1759195239499,0.1317707,114700.0,114690.0,1.23300948]
[1759195240003,0.1317707,114700.0,114690.0,1.50396685]
[1759195240199,0.1317707,114700.0,114690.0,1.59109515]
[1759195241005,0.1317707,114700.0,114690.0,0.78729515]
[1759195241203,0.40272807,114700.0,114690.0,0.42920948]
[1759195241401,0.40272807,114700.0,114690.0,0.65345737]
[1759195241602,0.40272807,114700.0,114690.0,1.45721737]
[1759195242106,0.40272807,114700.0,114690.0,0.65345737]
[1759195243204,0.40272807,114700.0,114690.0,0.29265737]
[1759195243504,0.1223783,114690.0,114680.0,0.74058727]
[1759195243810,0.41293409,114690.0,114680.0,1.54434727]
[1759195243996,0.41293409,114690.0,114680.0,0.74058727]
[1759195244202,0.41293409,114690.0,114680.0,0.65345737]
[1759195245003,0.41293409,114690.0,114680.0,0.65445737]
[1759195245505,0.81293409,114690.0,114680.0,0.3825]
[1759195245715,0.81293409,114690.0,114680.0,0.3608]
[1759195246115,0.1003559,114680.0,114670.0,1.52261667]
[1759195246304,0.37131327,114680.0,114670.0,1.52261667]
[1759195246906,0.37131327,114680.0,114670.0,1.2516593]
[1759195247112,0.37131327,114680.0,114670.0,1.52261667]
[1759195247415,0.4406125,114680.0,114670.0,1.52861667]
[1759195247813,0.4626425,114680.0,114670.0,0.65945737]
[1759195249610,0.47141707,114680.0,114670.0,0.65945737]
[1759195251313,0.4626425,114680.0,114670.0,0.74660087]
[1759195251614,0.19168513,114680.0,114670.0,0.74660087]
[1759195251814,0.09132923,114680.0,114670.0,0.75177087]
[1759195252116,0.17846513,114680.0,114670.0,0.75177087]
[1759195252418,0.19107513,114680.0,114670.0,0.74660087]
[1759195254712,0.06929923,114680.0,114670.0,0.75177087]
[1759195254908,1.18394039,114690.0,114670.0,0.75177087]
[1759195255119,1.22642857,114690.0,114680.0,0.29218737]
[1759195257310,0.42266857,114690.0,114680.0,0.37932327]
[1759195257620,0.05570818,114690.0,114680.0,1.01108064]
[1759195257818,0.03613,114690.0,114680.0,1.02390064]
[1759195258017,0.02291,114690.0,114680.0,1.02390064]
[1759195258719,0.02331,114690.0,114680.0,1.02390064]
[1759195260011,0.1100383,114690.0,114680.0,1.02390064]
[1759195260210,0.1104383,114690.0,114680.0,1.82762064]
[1759195260511,0.1100383,114690.0,114680.0,1.82762064]
[1759195260717,0.1104383,114690.0,114680.0,1.82762064]
[1759195261316,0.1104383,114690.0,114680.0,1.02390064]
[1759195261612,0.1104383,114690.0,114680.0,1.82762064]
[1759195262218,0.1104383,114690.0,114680.0,1.55664764]
[1759195262910,0.1104383,114690.0,114680.0,1.46951174]
[1759195263106,0.1230483,114690.0,114680.0,1.46951174]
[1759195263311,0.1230483,114690.0,114680.0,1.55664764]
[1759195264122,0.03592,114690.0,114680.0,1.55664764]
[1759195264317,0.0004,114690.0,114680.0,2.00335712]
[1759195264517,0.1232512,114700.0,114690.0,0.1083583]
[1759195264719,0.03693,114700.0,114690.0,0.74010004]
[1759195264919,0.03693,114700.0,114690.0,0.74709004]
[1759195264920,0.02371,114700.0,114690.0,0.74709004]
[1759195265219,0.03693,114710.0,114700.0,0.1083507]
[1759195265419,0.0203756,114710.0,114700.0,1.55051244]
[1759195265717,0.0199756,114710.0,114700.0,1.55051244]
[1759195266115,0.0004,114710.0,114700.0,1.95051244]
[1759195266515,0.0920248,114720.0,114710.0,0.1135131]
[1759195266719,0.0920248,114720.0,114710.0,0.74525484]
[1759195266720,0.11239426,114720.0,114710.0,0.74525484]
[1759195267621,0.02036946,114720.0,114710.0,0.74525484]
[1759195267811,0.0008,114720.0,114710.0,1.14525484]
[1759195268014,0.0871019,114730.0,114720.0,0.1211555]
[1759195268227,0.02035783,114730.0,114720.0,1.82747898]
[1759195268519,0.19079029,114740.0,114730.0,0.1083279]
[1759195268714,0.21114485,114740.0,114730.0,0.74006964]
[1759195268917,0.21114485,114740.0,114730.0,0.38203]
[1759195269116,0.21034485,114740.0,114730.0,0.65297174]
[1759195269423,0.21074485,114740.0,114730.0,0.65297174]
[1759195271218,0.22874485,114740.0,114730.0,0.65297174]
[1759195272822,0.22874485,114740.0,114730.0,0.74006964]
[1759195273023,0.12904455,114740.0,114730.0,0.74705964]
[1759195273319,0.03795836,114740.0,114730.0,1.14705964]
[1759195273519,0.018,114740.0,114730.0,1.14705964]
[1759195273720,0.0184,114740.0,114730.0,1.14705964]
[1759195274124,0.018,114740.0,114730.0,1.95049964]
[1759195274426,0.0184,114740.0,114730.0,1.95049964]
[1759195274628,0.018,114740.0,114730.0,1.14705964]
[1759195274927,0.0184,114740.0,114730.0,1.95045964]
[1759195275123,0.0184,114740.0,114730.0,1.95919489]
[1759195275424,0.0184,114740.0,114730.0,1.15579489]
[1759195275630,0.0184,114740.0,114730.0,1.95915489]
[1759195275930,0.0184,114740.0,114730.0,1.95041964]
[1759195276115,0.0184,114740.0,114730.0,1.14705964]
[1759195276318,0.0184,114740.0,114730.0,1.95041964]
[1759195277228,0.0184,114740.0,114730.0,1.95899334]
[1759195277927,0.0184,114740.0,114730.0,1.14705964]
[1759195278126,0.1265503,114740.0,114730.0,1.55037964]
[1759195278624,0.1054903,114740.0,114730.0,1.55037964]
[1759195278831,0.1054903,114740.0,114730.0,1.55033964]
[1759195279331,0.1054903,114740.0,114730.0,0.74705964]
[1759195279630,0.0184,114740.0,114730.0,1.55033964]
[1759195281128,0.0184,114740.0,114730.0,1.95033964]
[1759195281331,0.0008,114750.0,114740.0,0.0870903]
[1759195281632,0.06810859,114760.0,114750.0,0.1083727]
[1759195281833,0.0008,114760.0,114750.0,1.81425618]
[1759195282633,0.0870676,114770.0,114760.0,0.1083645]
[1759195282836,0.1097276,114770.0,114760.0,0.65303174]
[1759195283133,0.1233476,114770.0,114760.0,1.45623174]
[1759195283539,0.1233476,114770.0,114760.0,0.65303174]
[1759195283837,0.79428934,114770.0,114760.0,0.02129]
[1759195284028,0.1225552,114760.0,114750.0,1.18525]
[1759195284838,0.1055552,114760.0,114750.0,1.18525]
[1759195285039,0.57431854,114760.0,114750.0,0.38209]
[1759195285838,0.57431854,114760.0,114750.0,0.40509]
[1759195286839,0.06876334,114760.0,114750.0,0.76311444]
[1759195287039,0.1006927,114770.0,114750.0,1.03405618]
[1759195287238,0.14283786,114770.0,114760.0,0.74010684]
[1759195288331,0.14283786,114770.0,114760.0,0.4691651]
[1759195289032,0.14283786,114770.0,114760.0,1.18517]
[1759195289233,0.16783786,114770.0,114760.0,1.18517]
[1759195289540,0.1483527,114770.0,114760.0,1.18517]
[1759195290141,0.21944329,114770.0,114760.0,1.18517]
[1759195290529,0.21944329,114770.0,114760.0,0.38209]
[1759195290733,0.1006952,114760.0,114750.0,1.16384]
[1759195291449,0.1006952,114760.0,114750.0,0.38209]
[1759195291450,0.1225552,114760.0,114750.0,0.38209]
[1759195291747,0.1225627,114750.0,114740.0,0.38209]
[1759195292142,0.1225627,114750.0,114740.0,1.18513]
[1759195292543,0.1225627,114750.0,114740.0,1.2722203]
[1759195292743,0.1225627,114750.0,114740.0,0.4691803]
[1759195292940,0.1225627,114750.0,114740.0,1.2722203]
[1759195293150,0.14209344,114750.0,114740.0,1.2732203]
[1759195293650,0.14209344,114750.0,114740.0,1.2731803]
[1759195293850,0.14209344,114750.0,114740.0,0.4701803]
[1759195294843,1.23888676,114750.0,114740.0,0.001]
[1759195295043,0.1225779,114730.0,114720.0,0.3608]
[1759195295238,0.03315074,114730.0,114720.0,0.71808332]
[1759195295437,0.01442,114740.0,114730.0,0.0870979]
[1759195295642,0.01442,114740.0,114730.0,0.80518122]
[1759195295643,0.0008,114740.0,114730.0,0.80518122]
[1759195296248,0.1229703,114740.0,114730.0,1.18509]
[1759195296544,0.1229703,114740.0,114730.0,0.80518122]
[1759195296849,0.03588,114740.0,114730.0,0.80518122]
[1759195297044,0.1006983,114760.0,114740.0,0.0870903]
[1759195297235,0.1006983,114760.0,114750.0,0.35728332]
[1759195297236,0.14213448,114760.0,114750.0,0.35728332]
[1759195297841,0.14253448,114760.0,114750.0,0.35728332]
[1759195298045,0.01957618,114760.0,114750.0,0.80516602]
[1759195298243,0.01997618,114760.0,114750.0,0.80516602]
[1759195298443,0.01957618,114760.0,114750.0,0.80516602]
[1759195298751,0.02697618,114760.0,114750.0,0.80516602]
[1759195299143,0.11405128,114760.0,114750.0,0.71808332]
[1759195299657,0.14953128,114760.0,114750.0,0.71808332]
[1759195300851,0.12767128,114760.0,114750.0,0.71808332]
[1759195301448,0.11405128,114760.0,114750.0,0.80516602]
[1759195301649,0.0074,114760.0,114750.0,0.80516602]
[1759195301951,0.007,114760.0,114750.0,0.80516602]
[1759195302145,0.0074,114760.0,114750.0,0.80516602]
[1759195302749,0.0944751,114760.0,114750.0,0.80516602]
[1759195304053,0.0074,114760.0,114750.0,0.80516602]
[1759195304243,0.0074,114760.0,114750.0,1.20516602]
[1759195305447,0.007,114760.0,114750.0,1.20516602]
[1759195305648,0.0074,114760.0,114750.0,1.20516602]
[1759195305847,0.02697226,114760.0,114750.0,1.20516602]
[1759195307653,0.0074,114760.0,114750.0,1.20516602]
[1759195307849,0.09176513,114790.0,114760.0,0.0870751]
[1759195308055,0.12024376,114790.0,114780.0,0.79330332]
[1759195308255,0.12064376,114790.0,114780.0,0.79330332]
[1759195308457,0.09176513,114810.0,114800.0,0.0870448]
[1759195308650,0.01362,114820.0,114810.0,0.0870372]
[1759195308846,0.03503,114820.0,114810.0,1.58675052]
[1759195309252,0.1220596,114820.0,114810.0,1.58715052]
[1759195309753,0.1220596,114820.0,114810.0,1.58723052]
[1759195309951,0.03503,114820.0,114810.0,1.58723052]
[1759195310247,0.01362,114820.0,114810.0,1.58723052]